fUSD/lending_fUSD_20240428
["ID","MTS","AMOUNT","RATE_DAILY","PERIOD"]
[51779,1714332688871,-500.0,0.00012328,2]
[51781,1714332688890,-500.0,0.00012328,2]
[51783,1714332688909,-500.0,0.00012328,2]
[51785,1714332688928,-151.0,0.00012328,2]
[51787,1714332688947,-500.0,0.00012328,2]
[51789,1714332688966,-500.0,0.00012328,2]
[51791,1714332688984,-500.0,0.00012328,2]
[51793,1714332689003,-525.3,0.00012328,2]
[51795,1714332689023,-500.0,0.00012328,2]
[51797,1714332689042,-1112.23,0.00012328,2]
[51799,1714332689065,-3135.39,0.00012328,2]
[51801,1714332689086,-547.39,0.00012328,2]
[51803,1714332689107,-160.088939,0.00012328,2]
[51805,1714332689128,-1026.71,0.00012328,2]
[51807,1714332689147,-500.0,0.00012328,2]
[51809,1714332689166,-500.0,0.00012328,2]
[51811,1714332689185,-500.0,0.00012328,2]
[51813,1714332689204,-551.92,0.00012328,2]
[51815,1714332689224,-1154.15,0.00012328,2]
[51817,1714332689246,-506.26,0.00012328,2]
[51819,1714332689265,-1723.61,0.00012328,2]
[51821,1714332689286,-500.0,0.00012328,2]
[51823,1714332689305,-552.31,0.00012328,2]
[51825,1714332689325,-259.224662,0.00012328,2]
[51827,1714332689345,-587.34,0.00012328,2]
[51829,1714332689365,-500.0,0.00012328,2]
[51831,1714332689384,-500.0,0.00012328,2]
[51833,1714332689404,-151.0,0.00012328,2]
[51834,1714332689414,-500.0,0.00012328,2]
[51835,1714332689424,-667.82,0.00012328,2]
[51836,1714332689434,-500.0,0.00012328,2]
[51837,1714332689444,-407.65715,0.00012328,2]
[51838,1714332689453,-500.0,0.00012328,2]
[51839,1714332689463,-1626.01,0.00012328,2]
[51840,1714332689473,-407.65715,0.00012328,2]
[51841,1714332689484,-151.155496,0.00012328,2]
[51843,1714332689504,-500.0,0.00012328,2]
[51845,1714332689524,-500.0,0.00012328,2]
[51847,1714332689544,-500.0,0.00012328,2]
[51849,1714332689564,-1632.62,0.00012328,2]
[51851,1714332689583,-542.61,0.00012328,2]
[51853,1714332689602,-500.0,0.00012328,2]
[51855,1714332689623,-2058.85,0.00012328,2]
[51857,1714332689642,-671.95,0.00012328,2]
[51859,1714332689661,-151.0,0.00012328,2]
[51861,1714332689681,-645.54,0.00012328,2]
[51863,1714332689703,-151.0,0.00012328,2]
[51865,1714332689728,-500.0,0.00012328,2]
[51867,1714332689748,-151.0,0.00012328,2]
[51869,1714332689769,-500.0,0.00012328,2]
[51871,1714332689789,-1428.38,0.00012328,2]
[51873,1714332689811,-500.0,0.00012328,2]
[51875,1714332689831,-500.0,0.00012328,2]
[51877,1714332689851,-500.0,0.00012328,2]
[51879,1714332689871,-833.468227,0.00012328,2]
[51881,1714332689892,-500.0,0.00012328,2]
[51883,1714332689912,-500.0,0.00012328,2]
[51885,1714332689931,-3310.626766,0.00012328,2]
[51887,1714332689951,-3310.626766,0.00012328,2]
[51889,1714332689970,-654.38,0.00012328,2]
[51891,1714332689992,-500.0,0.00012328,2]
[51893,1714332690012,-500.0,0.00012328,2]
[51895,1714332690032,-986.66,0.00012328,2]
[51897,1714332690052,-1097.95,0.00012328,2]
[51899,1714332690072,-205.356982,0.00012328,2]
[51901,1714332690093,-500.0,0.00012328,2]
[51903,1714332690117,-541.9,0.00012328,2]
[51904,1714332690126,-500.0,0.00012328,2]
[51905,1714332690137,-500.0,0.00012328,2]
[51907,1714332690158,-2711.49,0.00012328,2]
[51909,1714332690178,-1460.26,0.00012328,2]
[51910,1714332690411,-558.530855,0.00012328,2]
[51911,1714332690458,-500.0,0.00012328,2]
[51913,1714332690477,-500.0,0.00012328,2]
[51915,1714332690496,-500.0,0.00012328,2]
[51917,1714332690515,-500.0,0.00012328,2]
[51919,1714332690535,-500.0,0.00012328,2]
[51921,1714332690556,-2596.06,0.00012328,2]
[51923,1714332690577,-676.21,0.00012328,2]
[51925,1714332690598,-1872.89,0.00012328,2]
[51927,1714332690618,-248.717387,0.00012328,2]
[51929,1714332690637,-500.0,0.00012328,2]
[51931,1714332690657,-500.0,0.00012328,2]
[51933,1714332690676,-500.0,0.00012328,2]
[51935,1714332690695,-740.66,0.00012328,2]
[51937,1714332690727,-230.62,0.00012328,2]
[51939,1714332690748,-500.0,0.00012328,2]
[51941,1714332690769,-500.0,0.00012328,2]
[51942,1714332690780,-1875.79,0.00012328,2]
[51943,1714332690793,-500.0,0.00012328,2]
[51945,1714332690814,-477.180475,0.00012328,2]
[51946,1714332690825,-500.0,0.00012328,2]
[51947,1714332690835,-500.0,0.00012328,2]
[51949,1714332690856,-151.0,0.00012328,2]
[51950,1714332690866,-477.180475,0.00012328,2]
[51951,1714332690877,-1411.81,0.00012328,2]
[51953,1714332690898,-2812.04,0.00012328,2]
[51955,1714332690918,-500.0,0.00012328,2]
[51957,1714332690939,-584.06,0.00012328,2]
[51959,1714332690959,-946.93,0.00012328,2]
[51960,1714332690969,-1373.99,0.00012328,2]
[51961,1714332690981,-1559.81,0.00012328,2]
[51962,1714332690991,-1168.89,0.00012328,2]
[51963,1714332691002,-500.0,0.00012328,2]
[51964,1714332691013,-500.0,0.00012328,2]
[51965,1714332691024,-1535.8,0.00012328,2]
[51966,1714332691035,-500.0,0.00012328,2]
[51967,1714332691045,-500.0,0.00012328,2]
[51968,1714332691056,-151.0,0.00012328,2]
[51969,1714332691066,-708.74,0.00012328,2]
[51970,1714332691076,-500.0,0.00012328,2]
[51971,1714332691086,-500.0,0.00012328,2]
[51972,1714332691096,-500.0,0.00012328,2]
[51973,1714332691106,-151.0,0.00012328,2]
[51975,1714332691127,-500.0,0.00012328,2]
[51977,1714332691148,-500.0,0.00012328,2]
[51979,1714332691169,-500.0,0.00012328,2]
[51981,1714332691190,-500.0,0.00012328,2]
[51983,1714332691209,-500.0,0.00012328,2]
[51985,1714332691229,-871.33,0.00012328,2]
[51987,1714332691249,-500.0,0.00012328,2]
[51989,1714332691270,-500.0,0.00012328,2]
[51991,1714332691290,-500.0,0.00012328,2]
[51993,1714332691310,-1888.98,0.00012328,2]
[51995,1714332691330,-500.0,0.00012328,2]
[51996,1714332691339,-151.0,0.00012328,2]
[51997,1714332691350,-1621.44,0.00012328,2]
[51998,1714332691360,-800.93,0.00012328,2]
[51999,1714332691371,-433.30737,0.00012328,2]
[52001,1714332691391,-500.0,0.00012328,2]
[52003,1714332691412,-433.30737,0.00012328,2]
[52005,1714332691434,-500.0,0.00012328,2]
[52007,1714332691454,-6175.8,0.00012328,2]
[52009,1714332691474,-272.205277,0.00012328,2]
[52011,1714332691493,-500.0,0.00012328,2]
[52013,1714332691512,-273.108739,0.00012328,2]
[52015,1714332691532,-501.0,0.00012329,2]
[52017,1714332691551,-519.24,0.00012501,2]
[52019,1714332691570,-500.0,0.00012602,2]
[52021,1714332691589,-500.0,0.00012602,2]
[52023,1714332691608,-500.0,0.00012602,2]
[52025,1714332691629,-589.78,0.00012602,2]
[52027,1714332691647,-500.0,0.00012602,2]
[52028,1714332691656,-500.0,0.00012602,2]
[52029,1714332691665,-500.0,0.00012602,2]
[52031,1714332691685,-500.0,0.00012602,2]
[52033,1714332691704,-500.0,0.00012602,2]
[52035,1714332691726,-506.03125464,0.00012602,2]
[52037,1714332691746,-500.0,0.00012602,2]
[52039,1714332691765,-895.08,0.00012602,2]
[52041,1714332691784,-500.0,0.00012602,2]
[52043,1714332691803,-722.31,0.00012602,2]
[52045,1714332691822,-548.18,0.00012602,2]
[52047,1714332691841,-500.0,0.00012602,2]
[52049,1714332691861,-500.0,0.00012602,2]
[52051,1714332691883,-500.0,0.00012602,2]
[52053,1714332691902,-500.0,0.00012602,2]
[52055,1714332691920,-500.0,0.00012602,2]
[52057,1714332691939,-500.0,0.00012602,2]
[52059,1714332691958,-500.0,0.00012602,2]
[52061,1714332691977,-500.0,0.00012602,2]
[52063,1714332691996,-500.0,0.00012602,2]
[52065,1714332692015,-500.0,0.00012602,2]
[52067,1714332692033,-500.0,0.00012602,2]
[52069,1714332692052,-188.47,0.00012602,2]
[52071,1714332692071,-500.0,0.00012602,2]
[52072,1714332692080,-500.0,0.00012602,2]
[52073,1714332692089,-602.29,0.00012602,2]
[52074,1714332692098,-339.74949119,0.00012602,2]
[52075,1714332692106,-654.13,0.00012602,2]
[52077,1714332692125,-202.89787963,0.00012602,2]
[52078,1714332692134,-500.0,0.00012602,2]
[52079,1714332692143,-500.0,0.00012602,2]
[52081,1714332692160,-544.93,0.00012602,2]
[52083,1714332692178,-500.0,0.00012602,2]
[52085,1714332692196,-500.0,0.00012602,2]
[52087,1714332692214,-500.0,0.00012602,2]
[52089,1714332692231,-500.0,0.00012602,2]
[52091,1714332692249,-958.14,0.00012602,2]
[52093,1714332692267,-500.0,0.00012602,2]
[52095,1714332692285,-500.0,0.00012602,2]
[52097,1714332692304,-535.6,0.00012602,2]
[52099,1714332692323,-500.0,0.00012602,2]
[52101,1714332692343,-500.0,0.00012602,2]
[52103,1714332692362,-500.0,0.00012602,2]
[52105,1714332692383,-500.0,0.00012602,2]
[52107,1714332692401,-500.0,0.00012602,2]
[52109,1714332692421,-515.92854208,0.00012602,2]
[52111,1714332692439,-567.75575104,0.00012602,2]
[52113,1714332692458,-500.0,0.00012602,2]
[52115,1714332692477,-547.48,0.00012602,2]
[52117,1714332692495,-599.09,0.00012602,2]
[52119,1714332692513,-500.0,0.00012602,2]
[52121,1714332692532,-500.0,0.00012602,2]
[52123,1714332692551,-500.0,0.00012602,2]
[52125,1714332692569,-500.0,0.00012602,2]
[52127,1714332692587,-500.0,0.00012602,2]
[52129,1714332692605,-500.0,0.00012602,2]
[52131,1714332692626,-500.0,0.00012602,2]
[52133,1714332692644,-500.0,0.00012602,2]
[52135,1714332692663,-500.0,0.00012602,2]
[52137,1714332692682,-500.0,0.00012602,2]
[52139,1714332692700,-500.0,0.00012602,2]
[52141,1714332692724,-500.0,0.00012602,2]
[52143,1714332692742,-500.0,0.00012602,2]
[52145,1714332692762,-500.0,0.00012602,2]
[52147,1714332692780,-500.0,0.00012602,2]
[52149,1714332692895,-500.0,0.00012602,2]
[52151,1714332692914,-500.0,0.00012602,2]
[52153,1714332692933,-500.0,0.00012602,2]
[52155,1714332692951,-500.0,0.00012602,2]
[52157,1714332692969,-795.36,0.00012602,2]
[52159,1714332692988,-500.0,0.00012602,2]
[52161,1714332693007,-640.01,0.00012602,2]
[52163,1714332693025,-500.0,0.00012602,2]
[52165,1714332693045,-500.0,0.00012602,2]
[52167,1714332693063,-500.0,0.00012602,2]
[52169,1714332693082,-500.0,0.00012602,2]
[52171,1714332693102,-517.51,0.00012602,2]
[52173,1714332693131,-237.81929448,0.00012602,2]
[52175,1714332693150,-500.0,0.00012602,2]
[52177,1714332693169,-505.92068112,0.00012602,2]
[52179,1714332693188,-500.0,0.00012602,2]
[52181,1714332693206,-500.0,0.00012602,2]
[52183,1714332693225,-500.0,0.00012602,2]
[52185,1714332693244,-225.21070131,0.00012602,2]
[52187,1714332693263,-500.0,0.00012602,2]
[52189,1714332693283,-500.0,0.00012602,2]
[52191,1714332693302,-500.0,0.00012602,2]
[52193,1714332693321,-500.0,0.00012602,2]
[52195,1714332693339,-500.0,0.00012602,2]
[52197,1714332693358,-500.0,0.00012602,2]
[52199,1714332693378,-502.71521423,0.00012602,2]
[52201,1714332693395,-500.0,0.00012602,2]
[52203,1714332693413,-500.0,0.00012602,2]
[52204,1714332693423,-311.52,0.00012602,2]
[52205,1714332693433,-500.0,0.00012602,2]
[52207,1714332693451,-500.0,0.00012602,2]
[52209,1714332693470,-500.0,0.00012602,2]
[52211,1714332693489,-500.0,0.00012602,2]
[52213,1714332693508,-500.0,0.00012602,2]
[52215,1714332693526,-500.0,0.00012602,2]
[52217,1714332693544,-530.16,0.00012602,2]
[52219,1714332693563,-500.0,0.00012602,2]
[52221,1714332693581,-500.0,0.00012602,2]
[52223,1714332693600,-500.0,0.00012602,2]
[52225,1714332693620,-500.0,0.00012602,2]
[52227,1714332693639,-306.119201,0.00012602,2]
[52229,1714332693657,-500.0,0.00012602,2]
[52231,1714332693676,-519.21,0.00012602,2]
[52233,1714332693694,-306.119201,0.00012602,2]
[52235,1714332693717,-500.0,0.00012602,2]
[52237,1714332693735,-1801.26,0.00012602,2]
[52239,1714332693754,-526.35,0.00012602,2]
[52241,1714332693774,-249.66426,0.00012602,2]
[52243,1714332693795,-213.90523,0.00012602,2]
[52245,1714332693815,-397.97,0.00012602,2]
[52247,1714332693834,-249.66426,0.00012602,2]
[52249,1714332693852,-1112.76,0.00012602,2]
[52251,1714332693872,-500.0,0.00012602,2]
[52253,1714332693892,-500.0,0.00012602,2]
[52255,1714332693911,-1080.1,0.00012602,2]
[52256,1714332693921,-151.0,0.00012602,2]
[52257,1714332693930,-1633.57,0.00012602,2]
[52259,1714332693949,-904.82,0.00012602,2]
[52261,1714332693967,-500.0,0.00012602,2]
[52262,1714332693976,-151.0,0.00012602,2]
[52263,1714332693986,-500.0,0.00012602,2]
[52264,1714332693995,-500.0,0.00012602,2]
[52265,1714332694004,-500.0,0.00012602,2]
[52266,1714332694014,-537.79928555,0.00012602,2]
[52267,1714332694023,-415.78413067,0.00012602,2]
[52268,1714332694032,-978.11,0.00012602,2]
[52269,1714332694042,-1921.69,0.00012602,2]
[52271,1714332694060,-2450.5,0.00012602,2]
[52273,1714332694080,-500.0,0.00012602,2]
[52275,1714332694099,-713.0,0.00012602,2]
[52277,1714332694119,-561.12,0.00012602,2]
[52279,1714332694139,-500.0,0.00012602,2]
[52281,1714332694157,-500.0,0.00012602,2]
[52283,1714332694176,-500.0,0.00012602,2]
[52285,1714332694194,-500.0,0.00012602,2]
[52287,1714332694212,-500.0,0.00012602,2]
[52289,1714332694231,-500.0,0.00012602,2]
[52291,1714332694250,-951.91,0.00012602,2]
[52293,1714332694269,-1240.81,0.00012602,2]
[52295,1714332694288,-1112.23,0.00012602,2]
[52297,1714332694308,-3135.39,0.00012602,2]
[52299,1714332694327,-500.0,0.00012602,2]
[52301,1714332694345,-500.0,0.00012602,2]
[52303,1714332694364,-1026.71,0.00012602,2]
[52305,1714332694384,-577.64,0.00012602,2]
[52307,1714332694402,-500.0,0.00012602,2]
[52309,1714332694422,-500.0,0.00012602,2]
[52311,1714332694439,-551.92,0.00012602,2]
[52313,1714332694457,-506.26,0.00012602,2]
[52315,1714332694480,-1723.61,0.00012602,2]
[52317,1714332694498,-500.0,0.00012602,2]
[52319,1714332694517,-587.34,0.00012602,2]
[52321,1714332694536,-500.0,0.00012602,2]
[52323,1714332694554,-667.82,0.00012602,2]
[52325,1714332694573,-500.0,0.00012602,2]
[52327,1714332694592,-500.0,0.00012602,2]
[52329,1714332694611,-974.35,0.00012602,2]
[52331,1714332694631,-500.0,0.00012602,2]
[52333,1714332694651,-1632.62,0.00012602,2]
[52335,1714332694670,-542.61,0.00012602,2]
[52337,1714332694689,-500.0,0.00012602,2]
[52339,1714332694707,-2058.85,0.00012602,2]
[52341,1714332694732,-671.95,0.00012602,2]
[52343,1714332694753,-876.76,0.00012602,2]
[52345,1714332694772,-500.0,0.00012602,2]
[52347,1714332694794,-579.0,0.00012602,2]
[52349,1714332694815,-619.85,0.00012602,2]
[52351,1714332694835,-500.0,0.00012602,2]
[52353,1714332694856,-500.0,0.00012602,2]
[52355,1714332694877,-500.0,0.00012602,2]
[52357,1714332694896,-500.0,0.00012602,2]
[52359,1714332694915,-500.0,0.00012602,2]
[52361,1714332694935,-500.0,0.00012602,2]
[52363,1714332694955,-500.0,0.00012602,2]
[52365,1714332694975,-290.98,0.00012602,2]
[52367,1714332694994,-500.0,0.00012602,2]
[52369,1714332695012,-500.0,0.00012602,2]
[52371,1714332695031,-500.0,0.00012602,2]
[52373,1714332695050,-541.9,0.00012602,2]
[52375,1714332695069,-500.0,0.00012602,2]
[52377,1714332695088,-2711.49,0.00012602,2]
[52379,1714332695106,-1460.26,0.00012602,2]
[52381,1714332695126,-1030.53,0.00012602,2]
[52383,1714332695145,-500.0,0.00012602,2]
[52385,1714332695165,-500.0,0.00012602,2]
[52387,1714332695184,-500.0,0.00012602,2]
[52389,1714332695204,-2596.06,0.00012602,2]
[52391,1714332695224,-1132.59,0.00012602,2]
[52393,1714332695243,-737.82,0.00012602,2]
[52395,1714332695262,-500.0,0.00012602,2]
[52397,1714332695282,-500.0,0.00012602,2]
[52398,1714332695292,-500.0,0.00012602,2]
[52399,1714332695301,-500.0,0.00012602,2]
[52400,1714332695311,-500.0,0.00012602,2]
[52401,1714332695321,-740.66,0.00012602,2]
[52402,1714332695330,-500.0,0.00012602,2]
[52403,1714332695340,-5665.06,0.00012602,2]
[52404,1714332695350,-500.0,0.00012602,2]
[52405,1714332695359,-1875.79,0.00012602,2]
[52406,1714332695370,-500.0,0.00012602,2]
[52407,1714332695380,-500.0,0.00012602,2]
[52409,1714332695399,-583.55,0.00012602,2]
[52411,1714332695418,-750.57,0.00012602,2]
[52413,1714332695438,-500.0,0.00012602,2]
[52415,1714332695456,-500.0,0.00012602,2]
[52417,1714332695476,-946.93,0.00012602,2]
[52419,1714332695495,-1559.81,0.00012602,2]
[52421,1714332695514,-500.0,0.00012602,2]
[52423,1714332695533,-500.0,0.00012602,2]
[52425,1714332695552,-500.0,0.00012602,2]
[52427,1714332695570,-500.0,0.00012602,2]
[52429,1714332695590,-500.0,0.00012602,2]
[52431,1714332695608,-500.0,0.00012602,2]
[52433,1714332695628,-500.0,0.00012602,2]
[52435,1714332695647,-500.0,0.00012602,2]
[52437,1714332695666,-585.69,0.00012602,2]
[52439,1714332695684,-5940.9,0.00012602,2]
[52441,1714332695703,-533.96,0.00012602,2]
[52443,1714332695725,-500.0,0.00012602,2]
[52445,1714332695744,-500.0,0.00012602,2]
[52447,1714332695763,-1418.28,0.00012602,2]
[52449,1714332695782,-500.0,0.00012602,2]
[52451,1714332695801,-1621.44,0.00012602,2]
[52453,1714332695820,-500.0,0.00012602,2]
[52455,1714332695840,-500.0,0.00012602,2]
[52457,1714332695858,-6175.8,0.00012602,2]
[52459,1714332695878,-500.0,0.00012602,2]
[52461,1714332695898,-500.0,0.00012602,2]
[52463,1714332695916,-37785.0053,0.00012776,2]
[52464,1714332695925,-254.0,0.0001279,3]
[52465,1714332695935,-20000.0,0.00012862,2]
[52467,1714332695954,-500.0,0.00012876,2]
[52469,1714332695973,-365.14,0.00012876,2]
[52471,1714332695992,-500.0,0.00012876,2]
[52473,1714332696011,-550.0,0.00012876,2]
[52475,1714332696030,-500.0,0.00012876,2]
[52477,1714332696049,-895.08,0.00012876,2]
[52479,1714332696068,-500.0,0.00012876,2]
[52481,1714332696088,-579.97,0.00012876,2]
[52483,1714332696108,-500.0,0.00012876,2]
[52485,1714332696129,-500.0,0.00012876,2]
[52487,1714332696148,-500.0,0.00012876,2]
[52489,1714332696170,-500.0,0.00012876,2]
[52491,1714332696190,-500.0,0.00012876,2]
[52493,1714332696210,-500.0,0.00012876,2]
[52495,1714332696230,-500.0,0.00012876,2]
[52497,1714332696251,-529.96,0.00012876,2]
[52499,1714332696271,-500.0,0.00012876,2]
[52501,1714332696292,-541.06,0.00012876,2]
[52503,1714332696313,-538.07,0.00012876,2]
[52505,1714332696335,-602.29,0.00012876,2]
[52507,1714332696357,-500.0,0.00012876,2]
[52509,1714332696385,-500.0,0.00012876,2]
[52510,1714332696396,-544.93,0.00012876,2]
[52511,1714332696408,-558.9,0.00012876,2]
[52512,1714332696418,-500.0,0.00012876,2]
[52513,1714332696429,-500.0,0.00012876,2]
[52514,1714332696439,-500.0,0.00012876,2]
[52515,1714332696450,-500.0,0.00012876,2]
[52516,1714332696461,-500.0,0.00012876,2]
[52517,1714332696472,-500.0,0.00012876,2]
[52518,1714332696482,-500.0,0.00012876,2]
[52519,1714332696492,-958.14,0.00012876,2]
[52520,1714332696503,-500.0,0.00012876,2]
[52521,1714332696513,-500.0,0.00012876,2]
[52522,1714332696524,-500.0,0.00012876,2]
[52523,1714332696534,-500.0,0.00012876,2]
[52525,1714332696554,-500.0,0.00012876,2]
[52527,1714332696574,-500.0,0.00012876,2]
[52529,1714332696594,-500.0,0.00012876,2]
[52531,1714332696614,-504.17659646,0.00012876,2]
[52533,1714332696639,-500.0,0.00012876,2]
[52535,1714332696659,-902.88,0.00012876,2]
[52537,1714332696679,-500.0,0.00012876,2]
[52539,1714332696699,-500.0,0.00012876,2]
[52541,1714332696724,-599.09,0.00012876,2]
[52543,1714332696744,-500.0,0.00012876,2]
[52545,1714332696764,-500.0,0.00012876,2]
[52546,1714332696774,-500.0,0.00012876,2]
[52547,1714332696784,-500.0,0.00012876,2]
[52549,1714332696806,-500.0,0.00012876,2]
[52551,1714332696827,-500.0,0.00012876,2]
[52553,1714332696848,-500.0,0.00012876,2]
[52555,1714332696868,-539.77,0.00012876,2]
[52557,1714332696891,-500.0,0.00012876,2]
[52559,1714332696911,-500.0,0.00012876,2]
[52561,1714332696932,-500.0,0.00012876,2]
[52563,1714332696953,-500.0,0.00012876,2]
[52565,1714332696973,-500.0,0.00012876,2]
[52567,1714332696992,-500.0,0.00012876,2]
[52569,1714332697012,-500.0,0.00012876,2]
[52571,1714332697032,-154.98,0.00012876,2]
[52573,1714332697051,-500.0,0.00012876,2]
[52575,1714332697070,-500.0,0.00012876,2]
[52577,1714332697091,-503.5097941,0.00012876,2]
[52579,1714332697111,-500.0,0.00012876,2]
[52581,1714332697132,-500.0,0.00012876,2]
[52583,1714332697152,-500.0,0.00012876,2]
[52585,1714332697172,-517.51,0.00012876,2]
[52586,1714332697181,-500.0,0.00012876,2]
[52587,1714332697191,-500.0,0.00012876,2]
[52589,1714332697212,-312.36,0.00012876,2]
[52591,1714332697231,-500.0,0.00012876,2]
[52592,1714332697241,-500.0,0.00012876,2]
[52593,1714332697251,-500.0,0.00012876,2]
[52595,1714332697271,-500.0,0.00012876,2]
[52597,1714332697291,-500.0,0.00012876,2]
[52599,1714332697311,-500.0,0.00012876,2]
[52601,1714332697331,-500.0,0.00012876,2]
[52603,1714332697350,-500.0,0.00012876,2]
[52605,1714332697371,-500.0,0.00012876,2]
[52607,1714332697390,-500.0,0.00012876,2]
[52609,1714332697410,-500.0,0.00012876,2]
[52611,1714332697430,-500.0,0.00012876,2]
[52613,1714332697455,-500.0,0.00012876,2]
[52615,1714332697473,-500.0,0.00012876,2]
[52616,1714332697483,-520.36,0.00012876,2]
[52617,1714332697493,-500.0,0.00012876,2]
[52619,1714332697513,-500.0,0.00012876,2]
[52621,1714332697533,-530.16,0.00012876,2]
[52623,1714332697554,-500.0,0.00012876,2]
[52625,1714332697578,-500.0,0.00012876,2]
[52627,1714332697598,-500.0,0.00012876,2]
[52629,1714332697618,-500.0,0.00012876,2]
[52631,1714332697640,-519.21,0.00012876,2]
[52633,1714332697659,-605.8109003,0.00012876,2]
[52635,1714332697679,-1801.26,0.00012876,2]
[52637,1714332697698,-569.5,0.00012876,2]
[52639,1714332697723,-574.41,0.00012876,2]
[52641,1714332697743,-500.0,0.00012876,2]
[52643,1714332697765,-500.0,0.00012876,2]
[52645,1714332697785,-500.0,0.00012876,2]
[52647,1714332697807,-1080.1,0.00012876,2]
[52649,1714332697826,-500.0,0.00012876,2]
[52651,1714332697846,-500.0,0.00012876,2]
[52652,1714332697856,-500.0,0.00012876,2]
[52653,1714332697866,-500.0,0.00012876,2]
[52655,1714332697886,-500.0,0.00012876,2]
[52657,1714332697906,-1921.69,0.00012876,2]
[52659,1714332697926,-2450.5,0.00012876,2]
[52661,1714332697946,-500.0,0.00012876,2]
[52663,1714332697965,-713.0,0.00012876,2]
[52665,1714332697985,-561.12,0.00012876,2]
[52667,1714332698005,-500.0,0.00012876,2]
[52668,1714332698015,-500.0,0.00012876,2]
[52669,1714332698025,-601.2,0.00012876,2]
[52671,1714332698045,-500.0,0.00012876,2]
[52673,1714332698065,-500.0,0.00012876,2]
[52675,1714332698086,-500.0,0.00012876,2]
[52677,1714332698107,-500.0,0.00012876,2]
[52679,1714332698129,-951.91,0.00012876,2]
[52681,1714332698150,-1240.81,0.00012876,2]
[52682,1714332698161,-500.0,0.00012876,2]